fUST/lending_fUST_20250303
["ID","MTS","AMOUNT","RATE_DAILY","PERIOD"]
[355129315,1740931836047,-835.41,0.00021917,2]
[355129316,1740931836057,-500.0,0.00021917,2]
[355129317,1740931836066,-151.0,0.00021917,2]
[355129318,1740931836077,-500.0,0.00021917,2]
[355129319,1740931836086,-500.0,0.00021917,2]
[355129320,1740931836097,-554.78,0.00021917,2]
[355129321,1740931836107,-1000.0,0.00021917,5]
[355129322,1740931836118,-1179.27,0.00021917,2]
[355129323,1740931836127,-151.0,0.00021917,2]
[355129324,1740931836137,-500.0,0.00021917,2]
[355129325,1740931836147,-751.4,0.00021917,2]
[355129326,1740931836157,-501.65,0.00021917,2]
[355129327,1740931836168,-500.0,0.00021917,2]
[355129328,1740931836178,-519.16954347,0.00021917,2]
[355129329,1740931836187,-500.0,0.00021917,2]
[355129330,1740931836197,-500.0,0.00021917,2]
[355129331,1740931836207,-500.0,0.00021917,2]
[355129332,1740931836217,-500.0,0.00021917,2]
[355129333,1740931836226,-500.0,0.00021917,2]
[355129334,1740931836236,-525.18,0.00021917,2]
[355129335,1740931836246,-708.51,0.00021917,2]
[355129336,1740931836256,-500.0,0.00021917,2]
[355129337,1740931836270,-500.0,0.00021917,2]
[355129338,1740931836280,-500.0,0.00021917,2]
[355129339,1740931836290,-500.0,0.00021917,2]
[355129340,1740931836300,-500.0,0.00021917,2]
[355129341,1740931836311,-500.0,0.00021917,2]
[355129342,1740931836321,-500.0,0.00021917,2]
[355129343,1740931836331,-2272.72,0.00021917,2]
[355129344,1740931836341,-500.0,0.00021917,2]
[355129345,1740931836351,-500.0,0.00021917,2]
[355129346,1740931836362,-500.0,0.00021917,2]
[355129347,1740931836371,-500.0,0.00021917,2]
[355129348,1740931836382,-334.881373,0.00021917,2]
[355129349,1740931836392,-500.0,0.00021917,2]
[355129350,1740931836403,-500.0,0.00021917,2]
[355129351,1740931836413,-1043.26,0.00021917,2]
[355129352,1740931836423,-500.0,0.00021917,2]
[355129353,1740931836433,-334.881373,0.00021917,2]
[355129354,1740931836443,-797.53,0.00021917,2]
[355129355,1740931836453,-300.0,0.00021917,2]
[355129356,1740931836463,-616.35,0.00021917,2]
[355129357,1740931836473,-198.16850203,0.00021917,2]
[355129358,1740931836483,-224.28834459,0.00021917,2]
[355129359,1740931836492,-1015.63,0.00021917,2]
[355129360,1740931836502,-500.0,0.00021917,2]
[355129361,1740931836512,-500.0,0.00021917,2]
[355129362,1740931836527,-879.33,0.00021917,2]
[355129363,1740931836537,-500.0,0.00021917,2]
[355129364,1740931836548,-500.0,0.00021917,2]
[355129365,1740931836558,-500.0,0.00021917,2]
[355129366,1740931836569,-600.93,0.00021917,2]
[355129367,1740931836578,-577.61,0.00021917,2]
[355129368,1740931836589,-500.0,0.00021917,2]
[355129369,1740931836600,-3000.0,0.0002192,2]
[355129370,1740931836610,-3000.0,0.0002193,2]
[355129371,1740931836621,-3000.0,0.0002194,2]
[355129372,1740931836631,-3000.0,0.0002195,2]
[355129373,1740931836642,-3000.0,0.0002196,2]
[355129374,1740931836652,-3000.0,0.0002197,2]
[355129375,1740931836663,-151.0,0.0002197,7]
[355129376,1740931836673,-151.0,0.0002197,7]
[355129377,1740931836684,-151.0,0.00021972,2]
[355129378,1740931836694,-500.0,0.00021973,2]
[355129379,1740931836703,-500.88538323,0.00021973,2]
[355129380,1740931836713,-500.0,0.00021973,2]
[355129381,1740931836723,-500.0,0.00021973,2]
[355129382,1740931836732,-500.0,0.00021973,2]
[355129383,1740931836742,-500.0,0.00021973,2]
[355129384,1740931836751,-500.0,0.00021973,2]
[355129385,1740931836762,-500.0,0.00021973,2]
[355129386,1740931836775,-501.10923772,0.00021973,2]
[355129387,1740931836786,-500.0,0.00021973,2]
[355129388,1740931836796,-500.0,0.00021973,2]
[355129389,1740931836806,-500.0,0.00021973,2]
[355129390,1740931836815,-500.0,0.00021973,2]
[355129391,1740931836825,-500.0,0.00021973,2]
[355129392,1740931836835,-500.0,0.00021973,2]
[355129393,1740931836845,-500.0,0.00021973,2]
[355129394,1740931836856,-500.0,0.00021973,2]
[355129395,1740931836866,-500.0,0.00021973,2]
[355129396,1740931836881,-3000.0,0.0002198,2]
[355129397,1740931836891,-3000.0,0.0002199,2]
[355129398,1740931836900,-151.0,0.0002199,7]
[355129399,1740931836910,-334.881373,0.0002199,7]
[355129400,1740931836922,-334.881373,0.0002199,7]
[355129401,1740931836932,-168.6,0.0002199,2]
[355129402,1740931836942,-168.6,0.0002199,2]
[355129403,1740931836952,-168.6,0.0002199,2]
[355129404,1740931836962,-168.6,0.0002199,2]
[355129405,1740931836972,-168.6,0.0002199,2]
[355129406,1740931836984,-168.656918,0.0002199,2]
[355129407,1740931836993,-6425.60004667,0.0002199,3]
[355129408,1740931837004,-1000.0,0.00022,2]
[355129409,1740931837015,-10000.0,0.00022,2]
[355129410,1740931837027,-1300.0,0.00022,3]
[355129411,1740931837037,-6721.48923184,0.00022,2]
[355129412,1740931837047,-293.58714176,0.00022,2]
[355129413,1740931837057,-3000.0,0.00022,2]
[355129414,1740931837067,-151.0,0.00022,7]
[355129415,1740931837078,-2940.0,0.00022,2]
[355129416,1740931837088,-151.0,0.00022,7]
[355129417,1740931837098,-250.0,0.00022,30]
[355129418,1740931837108,-161.684526,0.00022,7]
[355129419,1740931837119,-161.684526,0.00022,7]
[355129420,1740931837129,-151.0,0.00022,7]
[355129421,1740931837139,-9373.75929965,0.00022004,2]
[355129422,1740931837150,-3000.0,0.0002201,2]
[355129423,1740931837160,-3000.0,0.0002202,2]
[355129424,1740931837170,-3000.0,0.0002203,2]
[355129425,1740931837180,-3000.0,0.0002204,2]
[355129426,1740931837190,-3000.0,0.0002205,2]
[355129427,1740931837201,-3000.0,0.0002206,2]
[355129428,1740931837210,-224.84961601,0.0002207,7]
[355129429,1740931837220,-3000.0,0.0002207,2]
[355129430,1740931837230,-3000.0,0.0002208,2]
[355129431,1740931837240,-3000.0,0.0002209,2]
[355129432,1740931837250,-600.0,0.00022092,2]
[355129433,1740931837261,-289.15235294,0.000221,2]
[355129434,1740931837276,-3307.005539,0.000221,2]
[355129435,1740931837287,-500.0,0.00022173,2]
[355129436,1740931837297,-500.0,0.00022173,2]
[355129437,1740931837308,-500.0,0.00022173,2]
[355129438,1740931837318,-500.0,0.00022173,2]
[355129439,1740931837328,-500.0,0.00022173,2]
[355129440,1740931837340,-500.0,0.00022173,2]
[355129441,1740931837350,-500.0,0.00022173,2]
[355129442,1740931837360,-151.0,0.00022191,7]
[355129443,1740931837370,-151.0,0.00022191,7]
[355129444,1740931837380,-500.0,0.00022191,2]
[355129445,1740931837392,-378.3,0.00022191,2]
[355129446,1740931837402,-181.19,0.00022191,2]
[355129447,1740931837413,-425.08731172,0.00022191,2]
[355129448,1740931837423,-500.0,0.00022191,2]
[355129449,1740931837433,-382.96975167,0.00022191,2]
[355129450,1740931837444,-500.0,0.00022191,2]
[355129451,1740931837454,-500.0,0.00022191,2]
[355129452,1740931837464,-500.0,0.00022191,2]
[355129453,1740931837473,-499.0,0.00022191,2]
[355129454,1740931837483,-500.0,0.00022191,2]
[355129455,1740931837493,-151.0,0.00022191,7]
[355129456,1740931837503,-151.0,0.00022191,7]
[355129457,1740931837512,-471.18,0.00022191,2]
[355129458,1740931837525,-242.97,0.00022191,2]
[355129459,1740931837535,-500.0,0.00022191,2]
[355129460,1740931837545,-500.0,0.00022191,2]
[355129462,1740931837555,-500.0,0.00022191,2]
[355129463,1740931837565,-500.0,0.00022191,2]
[355129464,1740931837576,-500.0,0.00022191,2]
[355129465,1740931837586,-554.66,0.00022191,2]
[355129466,1740931837597,-440.78774478,0.00022191,2]
[355129467,1740931837607,-500.0,0.00022191,2]
[355129468,1740931837618,-500.0,0.00022191,2]
[355129469,1740931837629,-280.24,0.00022191,2]
[355129470,1740931837639,-231.1,0.00022191,2]
[355129472,1740931837651,-500.0,0.00022191,2]
[355129474,1740931837662,-507.83,0.00022191,2]
[355129476,1740931837673,-500.0,0.00022191,2]
[355129479,1740931837683,-483.63,0.00022191,2]
[355129481,1740931837694,-500.0,0.00022191,2]
[355129483,1740931837705,-500.0,0.00022191,2]
[355129485,1740931837716,-500.0,0.00022191,2]
[355129487,1740931837727,-361.59668098,0.00022191,2]
[355129489,1740931837737,-500.0,0.00022191,2]
[355129491,1740931837747,-500.0,0.00022191,2]
[355129494,1740931837756,-160.0,0.00022191,7]
[355129496,1740931837769,-1420.55,0.00022191,2]
[355129497,1740931837779,-493.14,0.00022191,2]
[355129498,1740931837788,-2499.17,0.00022191,2]
[355129499,1740931837799,-1441.92,0.00022191,2]
[355129500,1740931837809,-500.0,0.00022191,2]
[355129501,1740931837819,-500.0,0.00022191,2]
[355129502,1740931837828,-2250.15,0.00022191,2]
[355129503,1740931837839,-419.06,0.00022191,2]
[355129504,1740931837850,-500.0,0.00022191,2]
[355129505,1740931837859,-500.0,0.00022191,2]
[355129506,1740931837871,-500.0,0.00022191,2]
[355129507,1740931837883,-500.0,0.00022191,2]
[355129508,1740931837892,-500.0,0.00022191,2]
[355129509,1740931837905,-500.0,0.00022191,2]
[355129510,1740931837915,-731.56,0.00022191,2]
[355129511,1740931837925,-731.27,0.00022191,2]
[355129512,1740931837935,-2383.43,0.00022191,2]
[355129513,1740931837945,-500.0,0.00022191,2]
[355129514,1740931837955,-2642.29,0.00022191,2]
[355129515,1740931837964,-1052.64,0.00022191,2]
[355129516,1740931837975,-500.0,0.00022191,2]
[355129518,1740931837985,-19629.85965445,0.00022191,7]
[355129520,1740931837995,-500.0,0.00022191,2]
[355129521,1740931838005,-1268.84,0.00022191,2]
[355129522,1740931838016,-161.684526,0.00022191,7]
[355129523,1740931838027,-161.684526,0.00022191,7]
[355129524,1740931838036,-161.684526,0.00022191,7]
[355129525,1740931838046,-161.684526,0.00022191,7]
[355129526,1740931838056,-1701.5,0.00022191,2]
[355129527,1740931838066,-1699.9,0.00022191,2]
[355129528,1740931838075,-626.57279372,0.00022191,2]
[355129530,1740931838085,-151.0,0.00022191,7]
[355129532,1740931838095,-500.0,0.00022191,2]
[355129534,1740931838105,-151.0,0.00022191,7]
[355129535,1740931838114,-3994.28,0.00022191,2]
[355129537,1740931838124,-500.0,0.00022191,2]
[355129539,1740931838134,-500.0,0.00022191,2]
[355129541,1740931838144,-500.0,0.00022191,2]
[355129543,1740931838154,-34644.2,0.00022191,2]
[355129545,1740931838164,-1000.0,0.00022191,14]
[355129546,1740931838174,-1000.0,0.00022191,14]
[355129548,1740931838185,-1000.0,0.00022191,14]
[355129550,1740931838195,-1000.0,0.00022191,14]
[355129552,1740931838206,-500.0,0.00022191,2]
[355129554,1740931838217,-1000.0,0.00022191,14]
[355129556,1740931838226,-1000.0,0.00022191,14]
[355129557,1740931838236,-1000.0,0.00022191,14]
[355129559,1740931838247,-1000.0,0.00022191,14]
[355129561,1740931838256,-1000.0,0.00022191,14]
[355129563,1740931838269,-366.42,0.00022191,2]
[355129564,1740931838279,-1000.0,0.00022191,14]
[355129566,1740931838289,-1000.0,0.00022191,14]
[355129568,1740931838298,-500.0,0.00022191,2]
[355129570,1740931838309,-1000.0,0.00022191,14]
[355129572,1740931838321,-1000.0,0.00022191,14]
[355129574,1740931838331,-1000.0,0.00022191,14]
[355129575,1740931838341,-835.41,0.00022191,2]
[355129577,1740931838352,-1000.0,0.00022191,14]
[355129579,1740931838361,-1000.0,0.00022191,14]
[355129581,1740931838371,-1000.0,0.00022191,14]
[355129583,1740931838381,-1000.0,0.00022191,14]
[355129585,1740931838390,-1000.0,0.00022191,14]
[355129587,1740931838400,-1000.0,0.00022191,14]
[355129589,1740931838409,-1000.0,0.00022191,14]
[355129591,1740931838419,-1000.0,0.00022191,14]
[355129593,1740931838429,-1000.0,0.00022191,14]
[355129595,1740931838438,-1000.0,0.00022191,14]
[355129597,1740931838448,-1000.0,0.00022191,14]
[355129599,1740931838459,-1000.0,0.00022191,14]
[355129601,1740931838470,-1000.0,0.00022191,14]
[355129602,1740931838479,-500.0,0.00022191,2]
[355129603,1740931838489,-1000.0,0.00022191,14]
[355129613,1740931838678,-1000.0,0.00022191,14]
[355129615,1740931838689,-500.0,0.00022191,2]
[355129617,1740931838700,-1000.0,0.00022191,14]
[355129619,1740931838711,-151.0,0.00022191,7]
[355129621,1740931838724,-1000.0,0.00022191,14]
[355129624,1740931838734,-151.0,0.00022191,7]
[355129625,1740931838745,-1000.0,0.00022191,14]
[355129627,1740931838755,-1000.0,0.00022191,14]
[355129629,1740931838770,-1000.0,0.00022191,14]
[355129631,1740931838780,-1000.0,0.00022191,14]
[355129632,1740931838790,-1000.0,0.00022191,14]
[355129634,1740931838800,-1000.0,0.00022191,14]
[355129637,1740931838811,-960.847776,0.00022191,14]
[355129638,1740931838820,-907.58126486,0.00022191,5]
[355129641,1740931838830,-1179.27,0.00022191,2]
[355129643,1740931838840,-500.0,0.00022191,2]
[355129644,1740931838850,-751.4,0.00022191,2]
[355129646,1740931838860,-500.0,0.00022191,2]
[355129648,1740931838870,-500.0,0.00022191,2]
[355129651,1740931838885,-500.0,0.00022191,2]
[355129653,1740931838895,-414.26,0.00022191,2]
[355129655,1740931838904,-273.92,0.00022191,2]
[355129657,1740931838916,-708.51,0.00022191,2]
[355129659,1740931838926,-500.0,0.00022191,2]
[355129660,1740931838935,-500.0,0.00022191,2]
[355129662,1740931838944,-500.0,0.00022191,2]
[355129664,1740931838954,-2272.72,0.00022191,2]
[355129666,1740931838965,-500.0,0.00022191,2]
[355129669,1740931838977,-317.34,0.00022191,2]
[355129671,1740931838986,-500.0,0.00022191,2]
[355129673,1740931838996,-500.0,0.00022191,2]
[355129675,1740931839007,-334.881373,0.00022191,7]
[355129677,1740931839023,-334.881373,0.00022191,7]
[355129679,1740931839036,-1043.26,0.00022191,2]
[355129681,1740931839046,-334.881373,0.00022191,7]
[355129683,1740931839057,-334.881373,0.00022191,7]
[355129685,1740931839068,-797.53,0.00022191,2]
[355129687,1740931839079,-1015.63,0.00022191,2]
[355129689,1740931839089,-879.33,0.00022191,2]
[355129691,1740931839099,-500.0,0.00022191,2]
[355129693,1740931839109,-500.0,0.00022191,2]
[355129695,1740931839119,-600.93,0.00022191,2]
[355129696,1740931839129,-202.17374179,0.000222,3]
[355129698,1740931839140,-600.0,0.00022323,2]
[355129701,1740931839150,-2133.93230975,0.00022365,2]
[355129703,1740931839161,-544.19785533,0.0002238,2]
[355129705,1740931839171,-79644.37306867,0.00022464,3]
[355129707,1740931839181,-303565.70761588,0.00022464,3]
[355129709,1740931839192,-151.0,0.00022465,7]
[355129711,1740931839202,-206.57,0.00022465,2]
[355129713,1740931839212,-500.00000005,0.00022465,2]
[355129715,1740931839222,-500.0,0.00022465,2]
[355129717,1740931839232,-500.0,0.00022465,2]
[355129719,1740931839242,-500.0,0.00022465,2]
[355129721,1740931839253,-500.0,0.00022465,2]
[355129723,1740931839263,-151.0,0.00022465,7]
[355129725,1740931839280,-151.0,0.00022465,7]
[355129727,1740931839290,-500.0,0.00022465,2]
[355129729,1740931839300,-500.0,0.00022465,2]
[355129731,1740931839310,-456.27,0.00022465,2]
[355129733,1740931839320,-500.0,0.00022465,2]
[355129735,1740931839331,-500.0,0.00022465,2]
[355129737,1740931839341,-500.0,0.00022465,2]
[355129739,1740931839351,-219.4,0.00022465,2]
[355129741,1740931839361,-500.0,0.00022465,2]
[355129743,1740931839371,-301.13856417,0.00022465,2]
[355129745,1740931839381,-254.76,0.00022465,2]
[355129747,1740931839392,-500.0,0.00022465,2]
[355129749,1740931839402,-458.51,0.00022465,2]
[355129751,1740931839412,-1420.55,0.00022465,2]
[355129753,1740931839422,-2499.17,0.00022465,2]
[355129755,1740931839432,-1441.92,0.00022465,2]
[355129757,1740931839442,-456.99,0.00022465,2]
[355129759,1740931839453,-351.44,0.00022465,2]
[355129761,1740931839463,-2250.15,0.00022465,2]
[355129763,1740931839472,-500.0,0.00022465,2]
[355129765,1740931839482,-500.0,0.00022465,2]
[355129767,1740931839491,-500.0,0.00022465,2]
[355129769,1740931839501,-500.0,0.00022465,2]
[355129771,1740931839512,-500.0,0.00022465,2]
[355129773,1740931839526,-500.0,0.00022465,2]
[355129775,1740931839536,-731.56,0.00022465,2]
[355129777,1740931839547,-731.27,0.00022465,2]
[355129780,1740931839557,-2383.43,0.00022465,2]
[355129783,1740931839567,-500.0,0.00022465,2]
[355129785,1740931839578,-2642.29,0.00022465,2]
[355129787,1740931839587,-1052.64,0.00022465,2]
[355129789,1740931839598,-500.0,0.00022465,2]
[355129791,1740931839608,-500.0,0.00022465,2]
[355129793,1740931839618,-1268.84,0.00022465,2]
[355129795,1740931839628,-161.684526,0.00022465,7]
[355129797,1740931839640,-161.684526,0.00022465,7]
[355129799,1740931839650,-1701.5,0.00022465,2]
[355129801,1740931839661,-1699.9,0.00022465,2]
[355129803,1740931839672,-500.0,0.00022465,2]
[355129805,1740931839682,-151.0,0.00022465,7]
[355129807,1740931839693,-3994.28,0.00022465,2]
[355129810,1740931839703,-500.0,0.00022465,2]
[355129812,1740931839714,-500.0,0.00022465,2]
[355129814,1740931839724,-500.0,0.00022465,2]
[355129817,1740931839734,-34644.2,0.00022465,2]
[355129819,1740931839744,-500.0,0.00022465,2]
[355129821,1740931839755,-835.41,0.00022465,2]
[355129823,1740931839765,-500.0,0.00022465,2]
[355129825,1740931839779,-500.0,0.00022465,2]
[355129827,1740931839789,-151.0,0.00022465,7]
[355129829,1740931839799,-151.0,0.00022465,7]
[355129831,1740931839809,-1179.27,0.00022465,2]
[355129833,1740931839819,-500.0,0.00022465,2]
[355129835,1740931839829,-751.4,0.00022465,2]
[355129837,1740931839838,-500.0,0.00022465,2]
[355129839,1740931839848,-500.0,0.00022465,2]
[355129841,1740931839858,-231.95,0.00022465,2]
[355129843,1740931839868,-708.51,0.00022465,2]
[355129845,1740931839879,-500.0,0.00022465,2]
[355129847,1740931839891,-500.0,0.00022465,2]
[355129849,1740931839904,-2272.72,0.00022465,2]
[355129851,1740931839914,-500.0,0.00022465,2]
[355129853,1740931839925,-500.0,0.00022465,2]
[355129855,1740931839935,-334.881373,0.00022465,7]
[355129857,1740931839945,-334.881373,0.00022465,7]
[355129859,1740931839955,-334.881373,0.00022465,7]
[355129861,1740931839965,-1043.26,0.00022465,2]
[355129863,1740931839975,-334.881373,0.00022465,7]
[355129865,1740931839985,-334.881373,0.00022465,7]
[355129867,1740931839995,-797.53,0.00022465,2]
[355129869,1740931840004,-334.881373,0.00022465,7]
[355129871,1740931840015,-1015.63,0.00022465,2]
[355129873,1740931840029,-879.33,0.00022465,2]
[355129875,1740931840039,-500.0,0.00022465,2]
[355129877,1740931840050,-500.0,0.00022465,2]
[355129879,1740931840060,-600.93,0.00022465,2]
[355129881,1740931840071,-1078.39296846,0.0002247,2]
[355129883,1740931840081,-600.0,0.00022553,2]
[355129885,1740931840091,-609.032638,0.000227,2]
[355129887,1740931840102,-151.0,0.00022739,7]
[355129889,1740931840112,-320.5905541,0.00022739,2]
[355129891,1740931840122,-563.09,0.00022739,2]
[355129893,1740931840132,-500.0,0.00022739,2]
[355129895,1740931840143,-500.0,0.00022739,2]
[355129897,1740931840152,-500.0,0.00022739,2]
[355129899,1740931840162,-500.0,0.00022739,2]
[355129901,1740931840172,-500.0,0.00022739,2]
[355129903,1740931840181,-500.0,0.00022739,2]
[355129905,1740931840191,-500.0,0.00022739,2]
[355129907,1740931840201,-473.98718833,0.00022739,2]
[355129909,1740931840210,-1420.55,0.00022739,2]
[355129911,1740931840221,-2499.17,0.00022739,2]
[355129913,1740931840232,-1441.92,0.00022739,2]
[355129915,1740931840242,-2250.15,0.00022739,2]
[355129917,1740931840252,-500.0,0.00022739,2]
[355129919,1740931840262,-500.0,0.00022739,2]
[355129921,1740931840277,-500.0,0.00022739,2]
[355129923,1740931840288,-500.0,0.00022739,2]
[355129925,1740931840298,-500.0,0.00022739,2]
[355129927,1740931840308,-448.5,0.00022739,2]
[355129929,1740931840318,-731.56,0.00022739,2]
[355129931,1740931840329,-731.27,0.00022739,2]
[355129933,1740931840339,-2383.43,0.00022739,2]
[355129935,1740931840349,-500.0,0.00022739,2]
[355129937,1740931840361,-2642.29,0.00022739,2]
[355129939,1740931840371,-1052.64,0.00022739,2]
[355129941,1740931840382,-500.0,0.00022739,2]
[355129943,1740931840394,-500.0,0.00022739,2]
[355129945,1740931840404,-1268.84,0.00022739,2]
[355129947,1740931840415,-161.684526,0.00022739,7]
[355129949,1740931840426,-161.684526,0.00022739,7]
[355129951,1740931840436,-1701.5,0.00022739,2]
[355129954,1740931840447,-1699.9,0.00022739,2]
[355129955,1740931840457,-500.0,0.00022739,2]
[355129957,1740931840468,-151.0,0.00022739,7]
[355129960,1740931840478,-3994.28,0.00022739,2]
[355129961,1740931840488,-500.0,0.00022739,2]
[355129964,1740931840498,-294.42720628,0.00022739,2]
[355129965,1740931840511,-500.0,0.00022739,2]
[355129968,1740931840526,-34644.2,0.00022739,2]
[355129970,1740931840537,-500.0,0.00022739,2]
[355129972,1740931840548,-835.41,0.00022739,2]
[355129974,1740931840558,-500.0,0.00022739,2]
[355129975,1740931840568,-500.0,0.00022739,2]
[355129977,1740931840578,-1179.27,0.00022739,2]
[355129979,1740931840588,-500.0,0.00022739,2]
[355129981,1740931840598,-751.4,0.00022739,2]
[355129983,1740931840608,-562.66,0.00022739,2]
[355129985,1740931840618,-500.0,0.00022739,2]
[355129987,1740931840627,-708.51,0.00022739,2]
[355129989,1740931840637,-464.38765928,0.00022739,2]
[355129991,1740931840648,-2272.72,0.00022739,2]
[355129993,1740931840657,-500.0,0.00022739,2]
[355129995,1740931840667,-500.0,0.00022739,2]
[355129997,1740931840676,-1043.26,0.00022739,2]
[355130000,1740931840685,-334.881373,0.00022739,7]
[355130002,1740931840695,-797.53,0.00022739,2]
[355130004,1740931840706,-334.881373,0.00022739,7]
[355130006,1740931840716,-1015.63,0.00022739,2]
[355130008,1740931840726,-879.33,0.00022739,2]
[355130010,1740931840735,-500.0,0.00022739,2]
[355130012,1740931840745,-500.0,0.00022739,2]
[355130014,1740931840755,-600.93,0.00022739,2]
[355130016,1740931840764,-600.0,0.00022783,2]
[355130018,1740931840777,-500.0,0.000228,2]
[355130020,1740931840786,-157.048702,0.00022882,3]
[355130022,1740931840797,-500.0,0.000229,2]
[355130024,1740931840807,-2133.93230975,0.00022913,2]
[355130026,1740931840816,-25000.0,0.00023,2]
[355130028,1740931840826,-1000.0,0.00023,2]
[355130030,1740931840836,-2681.97878989,0.00023,30]
[355130032,1740931840846,-10000.0,0.00023,2]
[355130034,1740931840857,-1300.0,0.00023,4]
[355130036,1740931840867,-700.0,0.00023,30]
[355130038,1740931840880,-700.0,0.00023,30]
[355130040,1740931840891,-700.0,0.00023,30]
[355130042,1740931840900,-700.0,0.00023,30]
[355130044,1740931840910,-700.0,0.00023,30]
[355130046,1740931840921,-700.0,0.00023,30]
[355130048,1740931840930,-700.0,0.00023,30]
[355130050,1740931840940,-700.0,0.00023,30]
[355130051,1740931840950,-700.0,0.00023,30]
[355130054,1740931840959,-700.0,0.00023,30]
[355130056,1740931840971,-700.0,0.00023,30]
[355130058,1740931840981,-700.0,0.00023,30]
[355130060,1740931840991,-700.0,0.00023,30]
[355130061,1740931841001,-1339.14681757,0.00023,30]
[355130063,1740931841010,-902.09952528,0.00023,30]
[355130065,1740931841022,-10340.610617,0.00023,3]
[355130067,1740931841033,-500.0,0.00023,30]
[355130069,1740931841043,-500.0,0.00023,30]
[355130071,1740931841053,-500.0,0.00023,30]
[355130074,1740931841064,-500.0,0.00023,30]
[355130076,1740931841074,-500.0,0.00023,30]
[355130078,1740931841085,-500.0,0.00023,30]
[355130080,1740931841094,-500.0,0.00023,30]
[355130081,1740931841103,-500.0,0.00023,30]
[355130084,1740931841114,-500.0,0.00023,30]
[355130086,1740931841123,-500.0,0.00023,30]
[355130087,1740931841133,-714.013882,0.00023,30]
[355130089,1740931841142,-151.0,0.00023,7]
[355130091,1740931841152,-219.0,0.00023,2]
[355130093,1740931841161,-500.0,0.00023,2]
[355130095,1740931841171,-160.0,0.00023,3]
[355130097,1740931841181,-19629.85965445,0.00023,3]
[355130099,1740931841191,-161.684526,0.00023,7]
[355130101,1740931841201,-161.684526,0.00023,7]
[355130103,1740931841211,-151.0,0.00023,7]
[355130106,1740931841222,-161.0,0.00023,2]
[355130108,1740931841232,-160.0,0.00023,3]
[355130110,1740931841243,-334.881373,0.00023,7]
[355130112,1740931841253,-334.881373,0.00023,7]
[355130114,1740931841264,-420.0,0.00023005,2]
[355130116,1740931841281,-151.0,0.00023013,7]
[355130118,1740931841291,-500.0,0.00023013,2]
[355130120,1740931841302,-282.47,0.00023013,2]
[355130122,1740931841313,-500.0,0.00023013,2]
[355130124,1740931841323,-500.0,0.00023013,2]
[355130126,1740931841333,-500.0,0.00023013,2]
[355130127,1740931841343,-388.0,0.00023013,2]
[355130129,1740931841354,-500.0,0.00023013,2]
[355130131,1740931841364,-1420.55,0.00023013,2]
[355130134,1740931841375,-2499.17,0.00023013,2]
[355130136,1740931841385,-1441.92,0.00023013,2]
[355130137,1740931841394,-2250.15,0.00023013,2]
[355130139,1740931841404,-500.0,0.00023013,2]